{"text_format":"1","workbook":"xlsx","n_sheets":2,"sheets":["QuickBooks Desktop Export Tips","Sheet1"],"not_rendered":{"charts":0,"images":3,"macros":0,"external_links":0,"defined_names":82,"comments":0,"pivot_tables":0},"unopened":[],"bounds":{"document_bytes":16777216,"sheet_cells":100000,"rows_first":2000,"rows_last":500,"rows_between":2000,"halvings":0,"cell_chars":16384,"cell_head_chars":4096},"cells_cut":0,"cells_raw":0,"read":"whole","date_system":"1900"}

{"sheet":"QuickBooks Desktop Export Tips","index":0,"n_rows":0,"n_cols":0,"rows_kept":0,"cut":false,"hidden":false,"merged":[]}

{"sheet":"Sheet1","index":1,"n_rows":52,"n_cols":13,"rows_kept":52,"cut":false,"hidden":false,"merged":[]}
["Type",null,"Date",null,"Num",null,"Name",null,"Memo",null,"Amount",null,"Balance"]
[null,null,null,null,null,null,null,null,null,null,null,null,754975.16]
["Liability Check",null,"2025-02-03",null,"ACH",null,"Ascensus - Simple IRA",null,null,null,-5773.04,null,{"$f":"ROUND(M2+K3,5)","v":749202.12}]
["Deposit",null,"2025-02-06",null,null,null,null,null,"Deposit",null,257428.53,null,1006630.65]
["Bill Pmt -Check",null,"2025-02-06",null,"15717",null,"B. Dalton Bookkeeping",null,"Inv#9585, Bookkeeping/Accounting Services",null,-680,null,1005950.65]
["Bill Pmt -Check",null,"2025-02-06",null,"15718",null,"City of Bandera",null,"Acct#03146500, 12/20/2025-1/20/2025",null,-258.36,null,1005692.29]
["Bill Pmt -Check",null,"2025-02-06",null,"15719",null,"Clinton Carter",null,"Travel Expense/Per Diem, 2025 Urban Riparian Symposium",null,-513,null,1005179.29]
["Bill Pmt -Check",null,"2025-02-06",null,"15720",null,"Culligan of the Hill Country",null,"Inv#202502524700, Acct#524700",null,-129.75,null,1005049.54]
["Bill Pmt -Check",null,"2025-02-06",null,"15721",null,"David Jeffery",null,"Inv#2502, January 2025",null,-650,null,1004399.54]
["Bill Pmt -Check",null,"2025-02-06",null,"15722",null,"Ken Stoepel",null,"Acct#AC5027, Bronco #1 oil change",null,-96.67,null,1004302.87]
["Bill Pmt -Check",null,"2025-02-06",null,"15723",null,"San Antonio Testing Laboratory, LLC",null,"Inv#2412313, Wharton's Dock Fire Well",null,-468.65,null,1003834.22]
["Bill Pmt -Check",null,"2025-02-10",null,"15724",null,"San Antonio Testing Laboratory, LLC",null,"Inv#2501352, Wharton's Dock fire",null,-133.9,null,1003700.32]
["Bill Pmt -Check",null,"2025-02-10",null,"15725",null,"Wex Bank",null,"Inv#102741967, Acct#0496-00-486113-4",null,-544.82000000000005,null,1003155.5]
["Liability Check",null,"2025-02-13",null,null,null,"QuickBooks Payroll Service",null,"Created by Payroll Service on 02/03/2025",null,-26244.880000000001,null,976910.62]
["Paycheck",null,"2025-02-14",null,"DD",null,"Carter, Clinton R",null,"Direct Deposit",null,0,null,976910.62]
["Paycheck",null,"2025-02-14",null,"DD",null,"Curd, Charley",null,"Direct Deposit",null,0,null,976910.62]
["Paycheck",null,"2025-02-14",null,"DD",null,"Fox, Corrina D",null,"Direct Deposit",null,0,null,976910.62]
["Paycheck",null,"2025-02-14",null,"DD",null,"Hernandez, Hayli D",null,"Direct Deposit",null,0,null,976910.62]
["Paycheck",null,"2025-02-14",null,"DD",null,"Irvin, Diane J",null,"Direct Deposit",null,0,null,976910.62]
["Paycheck",null,"2025-02-14",null,"DD",null,"Mauk, David A",null,"Direct Deposit",null,0,null,976910.62]
["Paycheck",null,"2025-02-14",null,"DD",null,"Sckittone, Shelby L",null,"Direct Deposit",null,0,null,976910.62]
["Paycheck",null,"2025-02-14",null,"DD",null,"Thomas, Larry B",null,"Direct Deposit",null,0,null,976910.62]
["Paycheck",null,"2025-02-14",null,"DD",null,"Whitmire, Luke E",null,"Direct Deposit",null,0,null,976910.62]
["Liability Check",null,"2025-02-14",null,"EFTPS",null,"United States Treasury",null,"74-2576034",null,-8716.08,null,968194.54]
["Deposit",null,"2025-02-18",null,null,null,null,null,"Deposit",null,50013.52,null,1018208.06]
["Check",null,"2025-02-19",null,"D",null,"AT&T",null,"020 641 1032 001",null,-90,null,1018118.06]
["Deposit",null,"2025-02-20",null,null,null,null,null,"Deposit",null,19895.080000000002,null,1038013.14]
["Check",null,"2025-02-20",null,"D",null,"Bandera Bank",null,null,null,-2052.79,null,1035960.35]
["Bill Pmt -Check",null,"2025-02-24",null,"15727",null,"B. Dalton Bookkeeping",null,"Inv#9591, Bookkeeping, Accounting Service",null,-530,null,1035430.35]
["Bill Pmt -Check",null,"2025-02-25",null,"15728",null,"Allied Benefit Systems LLC",null,"Inv#0001021231, Period March 2025",null,-11824.66,null,1023605.69]
["Bill Pmt -Check",null,"2025-02-25",null,"15729",null,"Araseli Avalos",null,"Inv#FY2025-11, Cleaning Services",null,-250,null,1023355.69]
["Bill Pmt -Check",null,"2025-02-25",null,"15730",null,"BPS Security",null,"Inv#3595, Customer ID 69330004",null,-645,null,1022710.69]
["Bill Pmt -Check",null,"2025-02-25",null,"15731",null,"Mosty Law Firm",null,null,null,-810,null,1021900.69]
["Bill Pmt -Check",null,"2025-02-25",null,"15732",null,"Nippon Life Insurance Co of America",null,"Inv#0000944104, Period March 2025",null,-848.19,null,1021052.5]
["Bill Pmt -Check",null,"2025-02-25",null,"15733",null,"Xerox Financial Services",null,"010-0038073-001",null,-306.39,null,{"$f":"ROUND(M34+K35,5)","v":1020746.11}]
["Bill Pmt -Check",null,"2025-02-25",null,"15734",null,"Araseli Avalos",null,"Inv#FY2025-12, Cleaning Services",null,-250,null,1020496.11]
["Bill Pmt -Check",null,"2025-02-25",null,"15735",null,"Card Service Center",null,"Acct#xxxx0067, January 9, 2025-February 5, 2025",null,-2069.81,null,1018426.3]
["Deposit",null,"2025-02-25",null,null,null,null,null,"Deposit",null,6202.53,null,1024628.83]
["Liability Check",null,"2025-02-27",null,null,null,"QuickBooks Payroll Service",null,"Created by Payroll Service on 02/03/2025",null,-26244.91,null,998383.92]
["Bill Pmt -Check",null,"2025-02-27",null,"15736",null,"Allied Benefit Systems LLC",null,"Plan 3 Enrollment",null,-13987.52,null,984396.4]
["Bill Pmt -Check",null,"2025-02-27",null,"15737",null,"GM Ellis Law Firm PC",null,"Inv#BCRAGD-115, March 2025 Legislative Services",null,-2500,null,981896.4]
["Paycheck",null,"2025-02-28",null,"DD",null,"Carter, Clinton R",null,"Direct Deposit",null,0,null,981896.4]
["Paycheck",null,"2025-02-28",null,"DD",null,"Curd, Charley",null,"Direct Deposit",null,0,null,981896.4]
["Paycheck",null,"2025-02-28",null,"DD",null,"Fox, Corrina D",null,"Direct Deposit",null,0,null,981896.4]
["Paycheck",null,"2025-02-28",null,"DD",null,"Hernandez, Hayli D",null,"Direct Deposit",null,0,null,981896.4]
["Paycheck",null,"2025-02-28",null,"DD",null,"Irvin, Diane J",null,"Direct Deposit",null,0,null,981896.4]
["Paycheck",null,"2025-02-28",null,"DD",null,"Mauk, David A",null,"Direct Deposit",null,0,null,981896.4]
["Paycheck",null,"2025-02-28",null,"DD",null,"Sckittone, Shelby L",null,"Direct Deposit",null,0,null,981896.4]
["Paycheck",null,"2025-02-28",null,"DD",null,"Thomas, Larry B",null,"Direct Deposit",null,0,null,981896.4]
["Paycheck",null,"2025-02-28",null,"DD",null,"Whitmire, Luke E",null,"Direct Deposit",null,0,null,981896.4]
["Liability Check",null,"2025-02-28",null,"EFTPS",null,"United States Treasury",null,"74-2576034",null,-8716.02,null,973180.38]
["Deposit",null,"2025-02-28",null,null,null,null,null,"Interest",null,74.209999999999994,null,973254.59]